fUST/lending_fUST_20250531
["ID","MTS","AMOUNT","RATE_DAILY","PERIOD"]
[363308420,1748668164181,-361.75417049,0.00016999,2]
[363308421,1748668164202,-431.37555284,0.00016999,2]
[363308422,1748668164224,-498.61877372,0.00016999,2]
[363308423,1748668164245,-430.0,0.00016999,2]
[363308424,1748668164267,-400.0,0.00016999,2]
[363308425,1748668164287,-410.83201449,0.00016999,2]
[363308426,1748668164308,-394.98024811,0.00016999,2]
[363308427,1748668164330,-419.70368793,0.00016999,2]
[363308428,1748668164350,-400.0,0.00016999,2]
[363308429,1748668164370,-404.144865,0.00016999,2]
[363308430,1748668164390,-300.0,0.00016999,2]
[363308431,1748668164410,-430.0,0.00016999,2]
[363308432,1748668164430,-400.0,0.00016999,2]
[363308433,1748668164450,-403.4372791,0.00016999,2]
[363308434,1748668164470,-470.0,0.00016999,2]
[363308435,1748668164490,-509.20084783,0.00016999,2]
[363308436,1748668164510,-400.0,0.00016999,2]
[363308437,1748668164532,-450.0,0.00016999,2]
[363308438,1748668164553,-411.8883247,0.00016999,2]
[363308439,1748668164572,-430.0,0.00016999,2]
[363308440,1748668164592,-430.0,0.00016999,2]
[363308441,1748668164612,-430.0,0.00016999,2]
[363308442,1748668164633,-430.0,0.00016999,2]
[363308443,1748668164654,-450.0,0.00016999,2]
[363308444,1748668164674,-450.0,0.00016999,2]
[363308445,1748668164696,-430.0,0.00016999,2]
[363308446,1748668164717,-509.03479397,0.00016999,2]
[363308447,1748668164737,-508.52002369,0.00016999,2]
[363308448,1748668164758,-450.0,0.00016999,2]
[363308449,1748668164779,-424.34923647,0.00016999,2]
[363308450,1748668164800,-457.35824121,0.00016999,2]
[363308451,1748668164820,-405.99049729,0.00016999,2]
[363308452,1748668164840,-436.10855124,0.00016999,2]
[363308453,1748668164860,-430.0,0.00016999,2]
[363308454,1748668164881,-430.0,0.00016999,2]
[363308455,1748668164902,-376.97075569,0.00016999,2]
[363308456,1748668164922,-430.0,0.00016999,2]
[363308457,1748668164952,-430.0,0.00016999,2]
[363308458,1748668164982,-505.315503,0.00016999,2]
[363308459,1748668165006,-430.0,0.00016999,2]
[363308460,1748668165037,-400.0,0.00016999,2]
[363308461,1748668165066,-430.0,0.00016999,2]
[363308462,1748668165099,-396.55740732,0.00016999,2]
[363308463,1748668165133,-430.0,0.00016999,2]
[363308464,1748668165161,-430.0,0.00016999,2]
[363308465,1748668165189,-430.0,0.00016999,2]
[363308466,1748668165215,-158.25303243,0.00016999,2]
[363308467,1748668165242,-345.61744052,0.00016999,2]
[363308468,1748668165268,-430.0,0.00016999,2]
[363308469,1748668165292,-430.0,0.00016999,2]
[363308470,1748668165318,-430.0,0.00016999,2]
[363308471,1748668165346,-430.0,0.00016999,2]
[363308472,1748668165372,-430.0,0.00016999,2]
[363308473,1748668165401,-211.35,0.00016999,2]
[363308474,1748668165430,-430.0,0.00016999,2]
[363308475,1748668165453,-430.0,0.00016999,2]
[363308476,1748668165476,-430.0,0.00016999,2]
[363308477,1748668165505,-430.0,0.00016999,2]
[363308478,1748668165531,-430.0,0.00016999,2]
[363308479,1748668165556,-516.13,0.00016999,2]
[363308480,1748668165581,-430.0,0.00016999,2]
[363308481,1748668165604,-430.0,0.00016999,2]
[363308482,1748668165628,-430.0,0.00016999,2]
[363308483,1748668165652,-430.0,0.00016999,2]
[363308484,1748668165677,-407.96637653,0.00016999,2]
[363308485,1748668165703,-430.0,0.00016999,2]
[363308486,1748668165727,-205.43,0.00016999,2]
[363308487,1748668165752,-430.0,0.00016999,2]
[363308488,1748668165777,-430.0,0.00016999,2]
[363308489,1748668165801,-430.0,0.00016999,2]
[363308490,1748668165825,-430.0,0.00016999,2]
[363308491,1748668165848,-386.02641612,0.00016999,2]
[363308492,1748668165873,-430.0,0.00016999,2]
[363308493,1748668165897,-430.0,0.00016999,2]
[363308494,1748668165922,-430.0,0.00016999,2]
[363308495,1748668165948,-523.10685768,0.00016999,2]
[363308496,1748668165973,-430.0,0.00016999,2]
[363308497,1748668166000,-375.64,0.00016999,2]
[363308498,1748668166030,-430.0,0.00016999,2]
[363308499,1748668166056,-430.0,0.00016999,2]
[363308500,1748668166080,-424.09540143,0.00016999,2]
[363308501,1748668166106,-159.92255265,0.00016999,2]
[363308502,1748668166130,-500.0,0.00016999,2]
[363308503,1748668166154,-430.0,0.00016999,2]
[363308504,1748668166179,-431.51526081,0.00016999,2]
[363308505,1748668166206,-430.0,0.00016999,2]
[363308506,1748668166231,-430.0,0.00016999,2]
[363308507,1748668166258,-237.15651918,0.00016999,2]
[363308508,1748668166283,-307.45481803,0.00016999,2]
[363308509,1748668166309,-430.0,0.00016999,2]
[363308510,1748668166334,-430.0,0.00016999,2]
[363308511,1748668166358,-430.0,0.00016999,2]
[363308512,1748668166384,-424.27329561,0.00016999,2]
[363308513,1748668166410,-430.0,0.00016999,2]
[363308514,1748668166432,-432.1844074,0.00016999,2]
[363308515,1748668166454,-248.03,0.00016999,2]
[363308516,1748668166474,-430.0,0.00016999,2]
[363308517,1748668166496,-430.0,0.00016999,2]
[363308518,1748668166517,-400.0,0.00016999,2]
[363308519,1748668166540,-430.0,0.00016999,2]
[363308520,1748668166561,-379.98565656,0.00016999,2]
[363308521,1748668166781,-430.0,0.00016999,2]
[363308522,1748668166806,-431.40357897,0.00016999,2]
[363308523,1748668166826,-516.52436106,0.00016999,2]
[363308524,1748668166847,-430.0,0.00016999,2]
[363308525,1748668166867,-285.9579736,0.00016999,2]
[363308526,1748668166888,-430.0,0.00016999,2]
[363308527,1748668166909,-430.0,0.00016999,2]
[363308528,1748668166931,-430.0,0.00016999,2]
[363308529,1748668166952,-430.0,0.00016999,2]
[363308530,1748668166974,-430.0,0.00016999,2]
[363308531,1748668166994,-430.0,0.00016999,2]
[363308532,1748668167020,-430.0,0.00016999,2]
[363308533,1748668167041,-430.0,0.00016999,2]
[363308534,1748668167063,-430.0,0.00016999,2]
[363308535,1748668167083,-430.0,0.00016999,2]
[363308536,1748668167108,-430.0,0.00016999,2]
[363308537,1748668167129,-430.0,0.00016999,2]
[363308538,1748668167150,-433.39964934,0.00016999,2]
[363308539,1748668167171,-430.0,0.00016999,2]
[363308540,1748668167192,-430.0,0.00016999,2]
[363308541,1748668167211,-430.0,0.00016999,2]
[363308542,1748668167233,-430.0,0.00016999,2]
[363308543,1748668167254,-420.0,0.00016999,2]
[363308544,1748668167276,-430.0,0.00016999,2]
[363308545,1748668167297,-430.0,0.00016999,2]
[363308546,1748668167317,-430.0,0.00016999,2]
[363308547,1748668167337,-430.0,0.00016999,2]
[363308548,1748668167356,-430.0,0.00016999,2]
[363308549,1748668167376,-430.0,0.00016999,2]
[363308550,1748668167397,-430.0,0.00016999,2]
[363308551,1748668167418,-430.0,0.00016999,2]
[363308552,1748668167439,-430.0,0.00016999,2]
[363308553,1748668167459,-430.0,0.00016999,2]
[363308554,1748668167480,-430.0,0.00016999,2]
[363308555,1748668167500,-770.14,0.00016999,2]
[363308556,1748668167522,-434.87822458,0.00016999,2]
[363308557,1748668167545,-494.89476985,0.00016999,2]
[363308558,1748668167566,-430.0,0.00016999,2]
[363308559,1748668167586,-430.0,0.00016999,2]
[363308560,1748668167607,-430.0,0.00016999,2]
[363308561,1748668167627,-430.0,0.00016999,2]
[363308562,1748668167647,-430.0,0.00016999,2]
[363308563,1748668167668,-430.0,0.00017269,2]
[363308564,1748668167689,-430.0,0.0001727,2]
[363308565,1748668167710,-430.0,0.0001727,2]
[363308566,1748668167731,-430.0,0.0001727,2]
[363308567,1748668167753,-1475.63,0.0001727,2]
[363308568,1748668167776,-430.0,0.0001727,2]
[363308569,1748668167797,-430.0,0.0001727,2]
[363308570,1748668167820,-1595.88,0.0001727,2]
[363308571,1748668167842,-430.0,0.0001727,2]
[363308572,1748668167863,-606.84,0.0001727,2]
[363308573,1748668167886,-2064.51,0.0001727,2]
[363308574,1748668167909,-430.0,0.0001727,2]
[363308575,1748668167931,-910.53,0.0001727,2]
[363308576,1748668167954,-875.57,0.0001727,2]
[363308577,1748668167976,-430.0,0.0001727,2]
[363308578,1748668167997,-451.50454324,0.00017271,2]
[363308579,1748668168019,-430.0,0.00017271,2]
[363308580,1748668168040,-430.0,0.00017271,2]
[363308581,1748668168060,-430.0,0.00017271,2]
[363308582,1748668168083,-430.0,0.00017271,2]
[363308583,1748668168105,-430.0,0.00017271,2]
[363308584,1748668168125,-430.0,0.00017271,2]
[363308585,1748668168147,-430.0,0.00017271,2]
[363308586,1748668168169,-204.26,0.00017271,2]
[363308587,1748668168192,-430.0,0.00017271,2]
[363308588,1748668168212,-441.56699266,0.00017271,2]
[363308589,1748668168235,-440.88563036,0.00017271,2]
[363308590,1748668168255,-430.0,0.00017271,2]
[363308591,1748668168277,-298.48,0.00017271,2]
[363308592,1748668168297,-150.32,0.00017271,2]
[363308593,1748668168319,-555.16257092,0.00017271,2]
[363308594,1748668168339,-430.0,0.00017271,2]
[363308595,1748668168360,-430.0,0.00017271,2]
[363308596,1748668168382,-430.0,0.00017271,2]
[363308597,1748668168404,-430.0,0.00017271,2]
[363308598,1748668168426,-430.0,0.00017271,2]
[363308599,1748668168446,-430.0,0.00017271,2]
[363308600,1748668168466,-516.23723226,0.00017271,2]
[363308601,1748668168486,-363.22,0.00017271,2]
[363308602,1748668168507,-430.0,0.00017271,2]
[363308603,1748668168530,-430.0,0.00017271,2]
[363308604,1748668168550,-430.0,0.00017271,2]
[363308605,1748668168571,-430.0,0.00017271,2]
[363308606,1748668168591,-430.0,0.00017271,2]
[363308607,1748668168612,-430.0,0.00017271,2]
[363308608,1748668168633,-430.0,0.00017271,2]
[363308609,1748668168655,-430.0,0.00017271,2]
[363308610,1748668168676,-430.0,0.00017271,2]
[363308611,1748668168698,-430.0,0.00017271,2]
[363308612,1748668168718,-275.13309956,0.00017271,2]
[363308613,1748668168739,-430.0,0.00017271,2]
[363308614,1748668168760,-430.0,0.00017271,2]
[363308615,1748668168781,-430.0,0.00017271,2]
[363308616,1748668168803,-430.0,0.00017271,2]
[363308617,1748668168825,-430.0,0.00017271,2]
[363308618,1748668168846,-430.0,0.00017271,2]
[363308619,1748668168869,-430.0,0.00017271,2]
[363308620,1748668168891,-430.0,0.00017271,2]
[363308621,1748668168913,-430.0,0.00017271,2]
[363308622,1748668168936,-430.0,0.00017271,2]
[363308623,1748668168957,-430.0,0.00017271,2]
[363308624,1748668168977,-430.0,0.00017271,2]
[363308625,1748668168997,-432.85789592,0.00017271,2]
[363308626,1748668169021,-430.0,0.00017271,2]
[363308627,1748668169042,-430.0,0.00017271,2]
[363308628,1748668169064,-430.0,0.00017271,2]
[363308629,1748668169085,-430.0,0.00017271,2]
[363308630,1748668169109,-430.0,0.00017271,2]
[363308631,1748668169131,-468.12,0.00017271,2]
[363308632,1748668169152,-265.01132169,0.00017271,2]
[363308633,1748668169172,-430.0,0.00017272,2]
[363308634,1748668169192,-326.48807226,0.00017272,2]
[363308635,1748668169212,-430.0,0.00017272,2]
[363308636,1748668169234,-430.78,0.00017272,2]
[363308637,1748668169254,-403.94,0.00017272,2]
[363308638,1748668169278,-199.98,0.00017272,2]
[363308639,1748668169299,-430.0,0.00017272,2]
[363308640,1748668169321,-430.0,0.00017272,2]
[363308641,1748668169345,-430.0,0.00017272,2]
[363308642,1748668169366,-298.96,0.00017272,2]
[363308643,1748668169387,-430.0,0.00017272,2]
[363308644,1748668169409,-430.0,0.00017272,2]
[363308645,1748668169430,-430.0,0.00017272,2]
[363308646,1748668169451,-430.0,0.00017272,2]
[363308647,1748668169472,-430.0,0.00017272,2]
[363308648,1748668169495,-888.24,0.00017272,2]
[363308649,1748668169516,-430.0,0.00017272,2]
[363308650,1748668169539,-430.0,0.00017272,2]
[363308651,1748668169560,-430.0,0.00017272,2]
[363308652,1748668169793,-430.0,0.00017272,2]
[363308653,1748668169816,-430.0,0.00017272,2]
[363308654,1748668169841,-940.68,0.00017272,2]
[363308655,1748668169863,-430.0,0.00017272,2]
[363308656,1748668169883,-430.0,0.00017272,2]
[363308657,1748668169905,-434.95793077,0.00017273,2]
[363308658,1748668169926,-430.0,0.00017273,2]
[363308659,1748668169948,-300.0,0.00017273,2]
[363308660,1748668169969,-430.0,0.00017273,2]
[363308661,1748668169990,-430.0,0.00017273,2]
[363308662,1748668170011,-412.37489737,0.00017273,2]
[363308663,1748668170158,-430.0,0.00017273,2]
[363308664,1748668170180,-314.26926806,0.00017273,2]
[363308665,1748668170201,-371.44406114,0.00017273,2]
[363308666,1748668170222,-430.0,0.00017273,2]
[363308667,1748668170244,-430.0,0.00017273,2]
[363308668,1748668170266,-430.0,0.00017273,2]
[363308669,1748668170289,-569.4,0.00017273,2]
[363308670,1748668170310,-430.0,0.00017273,2]
[363308671,1748668170333,-423.86641696,0.00017273,2]
[363308672,1748668170354,-438.48,0.00017273,2]
[363308673,1748668170376,-430.0,0.00017273,2]
[363308674,1748668170398,-430.0,0.00017273,2]
[363308675,1748668170421,-430.0,0.00017273,2]
[363308676,1748668170443,-430.0,0.00017273,2]
[363308677,1748668170464,-430.0,0.00017273,2]
[363308678,1748668170486,-430.0,0.00017273,2]
[363308679,1748668170508,-430.0,0.00017273,2]
[363308680,1748668170530,-430.0,0.00017273,2]
[363308681,1748668170553,-430.0,0.00017273,2]
[363308682,1748668170574,-430.0,0.00017273,2]
[363308683,1748668170596,-430.0,0.00017273,2]
[363308684,1748668170620,-430.0,0.00017273,2]
[363308685,1748668170642,-430.0,0.00017273,2]
[363308686,1748668170664,-430.0,0.00017273,2]
[363308687,1748668170686,-500.0,0.00017273,2]
[363308688,1748668170708,-430.0,0.00017273,2]
[363308689,1748668170730,-430.0,0.00017273,2]
[363308690,1748668170752,-430.0,0.00017273,2]
[363308691,1748668170774,-430.0,0.00017273,2]
[363308692,1748668170796,-430.0,0.00017273,2]
[363308693,1748668170818,-430.0,0.00017273,2]
[363308694,1748668170839,-481.14,0.00017273,2]
[363308695,1748668170861,-430.0,0.00017273,2]
[363308696,1748668170882,-436.11384284,0.00017273,2]
[363308697,1748668170903,-430.0,0.00017273,2]
[363308698,1748668170925,-447.76,0.00017273,2]
[363308699,1748668170948,-430.0,0.00017273,2]
[363308700,1748668170969,-430.0,0.00017273,2]
[363308701,1748668170991,-430.0,0.00017273,2]
[363308702,1748668171011,-430.0,0.00017273,2]
[363308703,1748668171037,-437.81816589,0.00017273,2]
[363308704,1748668171062,-340.92,0.00017273,2]
[363308705,1748668171083,-517.8481705,0.00017273,2]
[363308706,1748668171106,-532.46,0.00017273,2]
[363308707,1748668171127,-440.83493996,0.00017273,2]
[363308708,1748668171147,-432.89631006,0.00017273,2]
[363308709,1748668171169,-770.14,0.00017273,2]
[363308710,1748668171191,-465.24,0.00017273,2]
[363308711,1748668171212,-430.0,0.00017273,2]
[363308712,1748668171234,-430.0,0.00017273,2]
[363308713,1748668171255,-430.0,0.00017273,2]
[363308714,1748668171277,-219.41007927,0.000174,2]
[363308715,1748668171297,-219.41007926,0.000174,2]
[363308716,1748668171320,-430.0,0.00017543,2]
[363308717,1748668171342,-430.0,0.00017544,2]
[363308718,1748668171362,-430.0,0.00017544,2]
[363308719,1748668171385,-430.0,0.00017544,2]
[363308720,1748668171408,-1475.63,0.00017544,2]
[363308721,1748668171430,-430.0,0.00017544,2]
[363308722,1748668171452,-430.0,0.00017544,2]
[363308723,1748668171475,-1595.88,0.00017544,2]
[363308724,1748668171496,-430.0,0.00017544,2]
[363308725,1748668171517,-606.84,0.00017544,2]
[363308726,1748668171542,-2064.51,0.00017544,2]
[363308727,1748668171566,-430.0,0.00017544,2]
[363308728,1748668171593,-910.53,0.00017544,2]
[363308729,1748668171616,-875.57,0.00017544,2]
[363308730,1748668171640,-430.0,0.00017544,2]
[363308731,1748668171662,-455.62787558,0.00017545,2]
[363308732,1748668171684,-332.88,0.00017545,2]
[363308733,1748668171705,-468.31550143,0.00017545,2]
[363308734,1748668171726,-399.64,0.00017545,2]
[363308735,1748668171747,-560.89,0.00017545,2]
[363308736,1748668171768,-430.0,0.00017545,2]
[363308737,1748668171795,-430.0,0.00017545,2]
[363308738,1748668171835,-430.0,0.00017545,2]
[363308739,1748668171858,-430.0,0.00017545,2]
[363308740,1748668171879,-430.0,0.00017545,2]
[363308741,1748668171901,-430.0,0.00017545,2]
[363308742,1748668171924,-430.0,0.00017545,2]
[363308743,1748668171947,-430.0,0.00017545,2]
[363308744,1748668171968,-430.0,0.00017545,2]
[363308745,1748668171990,-430.0,0.00017545,2]
[363308746,1748668172011,-353.62,0.00017545,2]
[363308747,1748668172038,-212.52,0.00017545,2]
[363308748,1748668172062,-430.0,0.00017545,2]
[363308749,1748668172084,-430.0,0.00017545,2]
[363308750,1748668172106,-430.0,0.00017545,2]
[363308751,1748668172129,-264.46,0.00017545,2]
[363308752,1748668172154,-273.42,0.00017545,2]
[363308753,1748668172176,-430.0,0.00017545,2]
[363308754,1748668172199,-430.0,0.00017545,2]
[363308755,1748668172220,-158.58,0.00017545,2]
[363308756,1748668172242,-495.54,0.00017545,2]
[363308757,1748668172262,-461.47155028,0.00017545,2]
[363308758,1748668172283,-430.0,0.00017545,2]
[363308759,1748668172303,-376.32,0.00017545,2]
[363308760,1748668172330,-430.0,0.00017545,2]
[363308761,1748668172353,-430.0,0.00017545,2]
[363308762,1748668172375,-430.0,0.00017545,2]
[363308763,1748668172396,-430.0,0.00017546,2]
[363308764,1748668172419,-430.78,0.00017546,2]
[363308765,1748668172439,-427.92,0.00017546,2]
[363308766,1748668172461,-430.0,0.00017546,2]
[363308767,1748668172484,-430.0,0.00017546,2]
[363308768,1748668172506,-430.0,0.00017546,2]
[363308769,1748668172530,-430.0,0.00017546,2]
[363308770,1748668172551,-430.0,0.00017546,2]
[363308771,1748668172606,-888.24,0.00017546,2]
[363308772,1748668172629,-553.44,0.00017546,2]
[363308773,1748668172650,-563.7,0.00017546,2]
[363308774,1748668172671,-430.0,0.00017546,2]
[363308775,1748668172691,-430.0,0.00017546,2]
[363308776,1748668172714,-430.0,0.00017546,2]
[363308777,1748668172736,-940.68,0.00017546,2]
[363308778,1748668172758,-430.0,0.00017546,2]
[363308779,1748668172781,-430.0,0.00017546,2]
[363308780,1748668172802,-304.91553664,0.00017547,2]
[363308781,1748668172822,-430.0,0.00017547,2]
[363308782,1748668172844,-430.0,0.00017547,2]
[363308783,1748668172866,-430.0,0.00017547,2]
[363308784,1748668172887,-222.64,0.00017547,2]
[363308785,1748668172907,-483.17,0.00017547,2]
[363308786,1748668172928,-430.0,0.00017547,2]
[363308787,1748668172950,-520.34,0.00017547,2]
[363308788,1748668172971,-430.0,0.00017547,2]
[363308789,1748668172992,-430.0,0.00017547,2]
[363308790,1748668173013,-500.0,0.00017547,2]
[363308791,1748668173041,-430.0,0.00017547,2]
[363308792,1748668173065,-430.0,0.00017547,2]
[363308793,1748668173087,-430.0,0.00017547,2]
[363308794,1748668173109,-430.0,0.00017547,2]
[363308795,1748668173130,-260.5,0.00017547,2]
[363308796,1748668173152,-462.80588903,0.00017547,2]
[363308797,1748668173173,-475.58,0.00017547,2]
[363308798,1748668173196,-430.0,0.00017547,2]
[363308799,1748668173218,-430.0,0.00017547,2]
[363308800,1748668173239,-430.0,0.00017547,2]
[363308801,1748668173261,-770.14,0.00017547,2]
[363308802,1748668173285,-492.42747307,0.00017547,2]
[363308803,1748668173307,-430.0,0.00017547,2]
[363308804,1748668173328,-43.27967691,0.00017667,2]
[363308805,1748668173525,-456.72032309,0.00017667,2]
[363308806,1748668173548,-500.82002908,0.00017682,2]
[363308807,1748668173569,-500.0,0.00017682,2]
[363308808,1748668173590,-156.16052953,0.00017686,2]
[363308809,1748668173610,-501.54153953,0.00017686,2]
[363308810,1748668173631,-500.0,0.00017686,2]
[363308811,1748668173651,-500.0,0.00017686,2]
[363308812,1748668173672,-500.0,0.00017686,2]
[363308813,1748668173692,-502.25716102,0.00017686,2]
[363308814,1748668173713,-571.77089163,0.00017686,2]
[363308815,1748668173734,-501.61333408,0.00017686,2]
[363308816,1748668173755,-500.0,0.00017686,2]
[363308817,1748668173778,-502.05716297,0.00017688,2]
[363308818,1748668173800,-500.0,0.000177,2]
[363308819,1748668173822,-500.0,0.000177,2]
[363308820,1748668173843,-300.09488458,0.00017703,2]
[363308821,1748668173864,-500.0,0.00017706,2]
[363308822,1748668173886,-507.7224305,0.00017706,2]
[363308823,1748668173908,-500.0,0.00017732,2]
[363308824,1748668173930,-500.0,0.00017761,2]
[363308825,1748668173951,-1000.0,0.00017761,2]
[363308826,1748668173972,-500.0,0.00017765,2]
[363308827,1748668173994,-1000.0,0.000178,2]
[363308828,1748668174017,-430.0,0.00017817,2]
[363308829,1748668174043,-430.0,0.00017818,2]
[363308830,1748668174065,-430.0,0.00017818,2]
[363308831,1748668174087,-430.0,0.00017818,2]
[363308832,1748668174114,-1475.63,0.00017818,2]
[363308833,1748668174136,-430.0,0.00017818,2]
[363308834,1748668174159,-430.0,0.00017818,2]
[363308835,1748668174183,-1595.88,0.00017818,2]
[363308836,1748668174205,-430.0,0.00017818,2]
[363308837,1748668174226,-606.84,0.00017818,2]
[363308838,1748668174249,-2064.51,0.00017818,2]
[363308839,1748668174272,-430.0,0.00017818,2]
[363308840,1748668174294,-910.53,0.00017818,2]
[363308841,1748668174318,-875.57,0.00017818,2]
[363308842,1748668174343,-354.24967663,0.00017818,2]
[363308843,1748668174365,-430.0,0.00017819,2]
[363308844,1748668174388,-430.0,0.00017819,2]
[363308845,1748668174412,-430.0,0.00017819,2]
[363308846,1748668174435,-430.0,0.00017819,2]
[363308847,1748668174456,-430.0,0.00017819,2]
[363308848,1748668174478,-430.0,0.00017819,2]
[363308849,1748668174499,-208.73,0.00017819,2]
[363308850,1748668174522,-430.0,0.00017819,2]
[363308851,1748668174544,-430.0,0.00017819,2]
[363308852,1748668174566,-430.0,0.00017819,2]
[363308853,1748668174588,-430.0,0.00017819,2]
[363308854,1748668174609,-430.0,0.00017819,2]
[363308855,1748668174631,-430.0,0.00017819,2]
[363308856,1748668174653,-430.0,0.00017819,2]
[363308857,1748668174673,-245.31676408,0.00017819,2]
[363308858,1748668174694,-430.0,0.00017819,2]
[363308859,1748668174717,-430.0,0.00017819,2]
[363308860,1748668174740,-433.82735018,0.00017819,2]
[363308861,1748668174761,-430.0,0.0001782,2]
[363308862,1748668174785,-430.78,0.0001782,2]
[363308863,1748668174807,-430.0,0.0001782,2]
[363308864,1748668174829,-430.0,0.0001782,2]
[363308865,1748668174850,-430.0,0.0001782,2]
[363308866,1748668174877,-430.0,0.0001782,2]
[363308867,1748668174898,-430.0,0.0001782,2]
[363308868,1748668174921,-888.24,0.0001782,2]
[363308869,1748668174943,-430.0,0.0001782,2]
[363308870,1748668174964,-430.0,0.0001782,2]
[363308871,1748668174987,-430.0,0.0001782,2]
[363308872,1748668175008,-940.68,0.0001782,2]
[363308873,1748668175038,-430.0,0.0001782,2]
[363308874,1748668175060,-430.0,0.0001782,2]
[363308875,1748668175216,430.0,0.00016999,2]
[363308876,1748668175246,430.0,0.00017273,2]
[363308877,1748668175277,430.0,0.00017547,2]
[363308878,1748668175546,3326.0,0.0002329,120]
[363308879,1748668175580,430.0,0.00016996,2]
[363308880,1748668175609,3326.0,0.0002328,120]
[363308881,1748668175640,150.5,0.0002329,120]
[363308882,1748668175676,3326.0,0.0002327,120]
[363308883,1748668175703,150.5,0.0002328,120]
[363308884,1748668175735,452.94259567,0.00016996,2]
[363308885,1748668175763,3326.0,0.0002369,120]
[363308886,1748668175798,265.04,0.0002327,120]
[363308887,1748668175827,3326.0,0.0002368,120]
[363308888,1748668175860,3326.0,0.0002367,120]
[363308889,1748668175897,3326.0,0.0002369,120]
[363308890,1748668176111,3326.0,0.0002368,120]
[363308891,1748668176151,3326.0,0.0002429,120]
[363308892,1748668176183,3330.29,0.0002428,120]
[363308893,1748668177274,430.0,0.00016996,2]
[363308894,1748668177536,430.0,0.0001727,2]
[363308895,1748668177779,430.0,0.00017544,2]
[363308896,1748668179759,430.0,0.00016996,2]
[363308897,1748668180014,430.0,0.0001727,2]
[363308898,1748668180264,430.0,0.00017544,2]
[363308899,1748668181842,299.47122214,0.00017286,2]
[363308900,1748668182947,503.66294754,0.00016996,2]
[363308901,1748668185843,430.0,0.00016997,2]
[363308902,1748668186130,430.0,0.00017271,2]
[363308903,1748668186385,430.0,0.00017545,2]
[363308904,1748668186960,430.0,0.00016996,2]
[363308905,1748668187242,430.0,0.0001727,2]
[363308906,1748668187632,430.0,0.00016995,2]
[363308907,1748668187875,430.0,0.00017269,2]
[363308908,1748668188492,430.0,0.00017543,2]
[363308909,1748668188756,430.0,0.00017817,2]
[363308910,1748668189051,7370.66,0.00016998,2]
[363308911,1748668189296,7370.66,0.00017272,2]
[363308912,1748668189540,7370.66,0.00017546,2]
[363308913,1748668189777,7370.66,0.0001782,2]
[363308914,1748668191510,430.0,0.00017544,2]
[363308915,1748668191926,430.0,0.00017818,2]
[363308916,1748668196778,444.55157478,0.00016998,2]
[363308917,1748668198719,430.0,0.00016997,2]
[363308918,1748668199099,430.0,0.00017271,2]
[363308919,1748668199371,430.0,0.00017545,2]